Cogmind - Beta 15 @@@ ROGUE MODE // 2025.05.11 @ 23:30:48 Player: Cereal Killer Result: Destroyed self with Rocket Launcher Performance ------------- Evolutions (0) 0 Regions Visited (2) 400 Robots Destroyed (30) 150 Value Destroyed (614) 614 Prototype IDs (5) 100 Alien Tech Used (0) 0 Bonus (4) 4 TOTAL SCORE: 1268 Bonus ------- Follower Combat Kills 35 Friendly Fire -31 Cogmind --------- Core Integrity 0/250 Matter 242/300 Energy 85/100 System Corruption 0% Temperature Cool (0) Movement Walking (190) Ox1 Location -10/Mines Parts ------- > --- POWER (1) -------- (None) > --- PROPULSION (2) --- Aluminum Leg Carbon-fiber Leg > --- UTILITY (2) ------ High-capacity Storage Unit Targeting Computer > --- WEAPON (2) ------- Particle Gun Rocket Launcher > --- INVENTORY (20) --- Ion Engine Light Ion Engine Light Nuclear Core Light Nuclear Core Carbon-fiber Leg Wheel Wheel Improved Heat Sink Improved Heat Sink Disposable Heat Sink Medium Storage Unit Small Matter Pod (50) Medium Matter Pod (100) Compact Matter Pod (150) Transport Network Coupler Small Laser Peak State ------------ > --- POWER ------------ Ion Engine > --- PROPULSION ------- Aluminum Leg Carbon-fiber Leg > --- UTILITY ---------- High-capacity Storage Unit Targeting Computer > --- WEAPON ----------- Particle Gun Rocket Launcher > --- INVENTORY -------- Ion Engine Light Ion Engine Light Nuclear Core Light Nuclear Core Carbon-fiber Leg Wheel Improved Heat Sink Improved Heat Sink Disposable Heat Sink Medium Storage Unit Small Matter Pod Medium Matter Pod Compact Matter Pod Transport Network Coupler Small Laser Rocket Launcher [Rating: 14] Favorites ----------- Power Ion Engine Engine Ion Engine Propulsion Wheel Leg Aluminum Leg Wheel Wheel Utility Targeting Computer Storage High-capacity Storage Unit Processor Targeting Computer Weapon Light Assault Rifle Energy Gun Particle Gun Ballistic Gun Light Assault Rifle Launcher Rocket Launcher Build | -11 -10 -10 ------- Run | Yrd Mat Min Slots Evolved . | . . . Power . | . . . Propulsion . | . . . Utility . | . . . Weapon . | . . . Parts Attached 20 | 6 8 6 Power 2 | 1 1 . Engine 2 | 1 1 . Core . | . . . Reactor . | . . . Propulsion 8 | 2 4 2 Treads . | . . . Leg 2 | . . 2 Wheel 6 | 2 4 . Hover . | . . . Flight . | . . . Utility 4 | 1 3 . Device . | . . . Storage 3 | 1 2 . Processor 1 | . 1 . Hackware . | . . . Protection . | . . . Artifact . | . . . Weapon 6 | 2 . 4 Energy Gun 2 | . . 2 Energy Cannon . | . . . Ballistic Gun 2 | 2 . . Ballistic Cannon . | . . . Launcher 2 | . . 2 Special Weapon . | . . . Impact Weapon . | . . . Slashing Weapon . | . . . Piercing Weapon . | . . . Special Melee Weapon . | . . . Unidentified Prototypes . | . . . Parts Lost 8 | . 2 6 Power 1 | . . 1 Propulsion 4 | . 2 2 Utility . | . . . Weapon 3 | . . 3 Highest Loss Streak 3 | . 1 3 To Critical Strikes . | . . . Average Backups 9 | 1 7 12 Power 2 | . 1 3 Propulsion . | . . 1 Utility 4 | . 2 6 Weapon 2 | . 2 2 Tool/Special . | . . . Unused Backups 16 | . 3 13 Power 4 | . . 4 Propulsion 2 | . . 2 Utility 8 | . 1 7 Weapon 2 | . 2 . Tool/Special . | . . . Average Slot Usage (%) 98 | . 97 98 Engine 14 | . 14 14 Leg 10 | . . 23 Wheel 16 | . 27 3 Storage 14 | . 14 14 Processor 13 | . 12 14 Energy Gun 9 | . . 19 Ballistic Gun 15 | . 28 . Launcher 3 | . . 6 Peak Build Rating 14 | 6 8 14 Average Rating 9 | 4 7 11 On Entrance 4 | . 6 8 Naked Turns . | . . . Heaviest Build 52 | 12 47 52 Greatest Support 26 | 26 26 25 Greatest Overweight (x) 4 | . 1 4 Average Overweight (x) . | . . 1 Largest Inventory Capacity 20 | 8 20 20 Average Capacity 14 | 7 9 20 Most Carried 17 | 3 10 17 Average Carried 9 | 1 7 13 Final Capacity 20 | 8 20 20 Final Carried 16 | 2 10 16 Class Distribution -------------------- 87% | Mutant 12% | Scavenger-Mutant Dominant Class ---------------- Mutant | -10/Materials Mutant | -10/Mines Resources | -11 -10 -10 ----------- Run | Yrd Mat Min Matter Collected 605 | 239 223 143 Remotely . | . . . Salvage Created 917 | . 757 160 Parts 73 | . 62 11 Haulers Intercepted 2 | . 2 . Recyclers Shooed 2 | . 1 1 Parts Field Recycled . | . . . Retrieved Matter . | . . . Parts Self-Destructed . | . . . Prevented . | . . . Kills | -11 -10 -10 ------- Run | Yrd Mat Min Combat Hostiles Destroyed 22 | . 14 8 Guns 15 | . 14 1 AOE 7 | . . 7 Classes Destroyed 9 | . 6 3 Worker 4 | . 2 2 Builder 1 | . . 1 Tunneler 2 | . . 2 Hauler 2 | . 2 . Recycler 1 | . 1 . Watcher 1 | . 1 . Swarmer 5 | . 3 2 Grunt 14 | . 11 3 Assembled 3 | . . 3 Best Kill Streak 8 | . 6 8 Combat Bots Only 5 | . 4 5 Max Kills in Single Turn 2 | . 1 2 Gunslinging . | . . . Exploded 2 | . . 2 Melee . | . . . Uniques/NPCs Destroyed . | . . . Combat | -11 -10 -10 -------- Run | Yrd Mat Min Hostile Shots Fired 91 | . 60 31 Missed 22 | . 12 10 Hits 69 | . 48 21 Projectile 69 | . 48 21 Damage Taken 935 | . 539 396 Core 270 | . 148 122 Absorbed by Shields . | . . . Core Remaining (%) 100 | 100 . . Volleys Fired 111 | . 66 45 Largest 2 | . 2 2 Hottest 105 | . 40 105 Shots Fired 188 | . 132 56 Gun 180 | . 132 48 Cannon . | . . . Launcher 8 | . . 8 Special . | . . . Kinetic 140 | . 132 8 Thermal 40 | . . 40 Explosive 8 | . . 8 Electromagnetic . | . . . Robot Hit Streak 19 | . 19 8 Robot Miss Streak 4 | . 3 4 Penetration Max . | . . . Secondary Targets 1 | . 1 . Max Gunslinging Chain 1 | . 1 . Shots Hit Robots 122 | . 90 32 Core Hits 69 | . 46 23 Critical Kills . | . . . Critical Parts Destroyed . | . . . Critical Strikes 1 | . . 1 Burn 1 | . . 1 Melee Attacks . | . . . Impact . | . . . Slashing . | . . . Piercing . | . . . Sneak Attacks . | . . . Combat Hostiles . | . . . Follow-up Attacks . | . . . Damage Inflicted 1643 | . 746 897 Guns 1146 | . 746 400 Cannons . | . . . Explosions 493 | . . 493 Melee . | . . . Ramming 4 | . . 4 Kinetic 779 | . 746 33 Thermal 367 | . . 367 Explosive 493 | . . 493 Electromagnetic . | . . . Impact . | . . . Slashing . | . . . Piercing . | . . . Highest Corruption . | . . . Average Corruption . | . . . Corruption Purged . | . . . Corruption Blocked . | . . . Overload Shots . | . . . Overflow Damage 1 | . . 1 Projectiles . | . . . Explosions 1 | . . 1 Melee . | . . . Knockbacks . | . . . Impact . | . . . Kinetic . | . . . Secondary . | . . . Self-Inflicted Damage 126 | . . 126 Shots 4 | . . 4 Rammed . | . . . Targets Rammed 1 | . . 1 Kicked 1 | . . 1 Crushed . | . . . Highest Temperature 206 | . 24 206 Average Temperature 49 | . 9 65 Received Heat Transfer 372 | . 255 117 Siege Activations . | . . . Martial Activations . | . . . Shielding Activations . | . . . Robots Disrupted . | . . . Combat Hostiles . | . . . Robots Corrupted . | . . . Combat Hostiles . | . . . Parts Fried . | . . . Impact Corruptions . | . . . Robots Melted . | . . . Combat Hostiles . | . . . Parts Melted 1 | . . 1 Heat Transferred 964 | . . 964 Parts Sabotaged . | . . . Parts Stolen . | . . . Parts Stripped . | . . . Power Chain Reactions . | . . . Alert | -11 -10 -10 ------- Run | Yrd Mat Min Maximum Alert Level . | . . . Low Security (%) 100 | 100 100 100 Level 1 . | . . . Level 2 . | . . . Level 3 . | . . . Level 4 . | . . . Level 5 . | . . . High Security . | . . . Max Security . | . . . Peak Influence 169 | . 169 77 Initial 46 | . . 46 Average 49 | . 81 14 Influence Increases 603 | . 385 218 Destroy 0b10 Robot/C 400 | . 280 120 Destroy 0b10 Robot/NC 55 | . 30 25 Destroy Leader 96 | . 66 30 Allied During Kill 2 | . . 2 Successful Hack 9 | . 9 . Destroy Structure 41 | . . 41 Influence Decreases 546 | . 264 282 Entered New Map 75 | . . 75 Time Decay 379 | . 244 135 Lost Part 72 | . 20 52 Lost Ally 20 | . . 20 Squads Dispatched 3 | . 3 . Investigation 3 | . 3 . Extermination . | . . . Reinforcement . | . . . Assault . | . . . Garrison . | . . . Intercept . | . . . Searches Triggered . | . . . Construction Impeded . | . . . Haulers Reinforced . | . . . Active Scanning Responses . | . . . Cargo Convoy Interrupts . | . . . Stealth | -11 -10 -10 --------- Run | Yrd Mat Min Distress Signals 1 | . 1 . Communications Jammed . | . . . Distress Signals . | . . . Times Spotted 46 | . 22 24 Peak Tracking Total 17 | . 5 17 Tactical Retreats . | . . . Traps | -11 -10 -10 ------- Run | Yrd Mat Min Traps Triggered 2 | . 2 . Indirectly . | . . . Trap Hack Attempts . | . . . Triggered . | . . . Disarmed . | . . . Reprogrammed . | . . . Reused . | . . . Traps Extracted . | . . . Installed . | . . . Triggered . | . . . Machines | -11 -10 -10 ---------- Run | Yrd Mat Min Machines Disabled . | . . . Max in Single Turn . | . . . Machines Repaired . | . . . Machines Dismantled . | . . . Machines Sabotaged . | . . . Overloaded Fab Kills . | . . . Hacking | -11 -10 -10 --------- Run | Yrd Mat Min Machines Accessed 7 | . 7 . Terminals 6 | . 6 . Fabricators . | . . . Repair Stations . | . . . Recycling Units 1 | . 1 . Scanalyzers . | . . . Garrison Access . | . . . Total Hacks 21 | . 21 . Successful 10 | . 10 . Failed 10 | . 10 . Catastrophic 2 | . 2 . Database Lockouts 1 | . 1 . Manual 11 | . 11 . Terminals 18 | . 18 . Fabricators . | . . . Repair Stations . | . . . Recycling Units 3 | . 3 . Scanalyzers . | . . . Garrison Access . | . . . Terminal Hacks 6 | . 6 . Robot Analysis 2 | . 2 . Prototype ID Bank 3 | . 3 . Locate Traps 1 | . 1 . Fabricator Hacks . | . . . Repair Station Hacks . | . . . Recycling Unit Hacks 1 | . 1 . Report Inventory 1 | . 1 . Scanalyzer . | . . . Garrison Access Hacks . | . . . Unauthorized Hacks 3 | . 3 . Terminals 2 | . 2 . Track 1 | . 1 . Botnet 1 | . 1 . Fabricators . | . . . Repair Stations . | . . . Recycling Units 1 | . 1 . Recyclers 1 | . 1 . Scanalyzers . | . . . Garrison Access . | . . . Data Cores Recovered . | . . . Used . | . . . Hacking Detections 6 | . 6 . Full Trace Events 1 | . 1 . Feedback Events . | . . . Feedback Blocked . | . . . Robot Schematics Acquired . | . . . Robots Built . | . . . Authchips . | . . . Time . | . . . Total Robot Build Rating . | . . . Part Schematics Acquired . | . . . Parts Built . | . . . Authchips . | . . . Time . | . . . Total Part Build Rating . | . . . Parts Repaired . | . . . Time . | . . . Parts Recycled . | . . . Recycled Matter . | . . . Retrieved Matter . | . . . Retrieved Components . | . . . Parts Scanalyzed . | . . . Part Schematics Acquired . | . . . Parts Damaged . | . . . Bothacking | -11 -10 -10 ------------ Run | Yrd Mat Min Used RIF Installer . | . . . Robots Hacked . | . . . Non-combat . | . . . Combat . | . . . Robot Hacks Applied . | . . . Relay Couplers Released . | . . . Fabnet Peak Effective % . | . . . Robots Rewired . | . . . Allies Hacked . | . . . Hacks Repelled . | . . . Allies | -11 -10 -10 -------- Run | Yrd Mat Min Total Allies 1 | . . 1 Largest Group 1 | . . 1 Highest-Rated Group 31 | . . 31 Highest-Rated Ally 31 | . . 31 Total Orders . | . . . Ally Attacks 8 | . . 8 Total Damage 106 | . . 106 Kills 1 | . . 1 Allies Corrupted . | . . . Allies Melted . | . . . Intel | -11 -10 -10 ------- Run | Yrd Mat Min Active Infowar (turns) . | . . . Robot Analysis Total 2 | . 2 . Derelict Logs Recovered . | . . . Drone Launches . | . . . Drone Recoveries . | . . . Exploration | -11 -10 -10 ------------- Run | Yrd Mat Min Turns Passed 1244 | 48 653 543 Spaces Moved 727 | 40 485 202 Core 4 | 4 . . Treads . | . . . Legs 139 | . . 139 Wheels 584 | 36 485 63 Hover . | . . . Flight . | . . . Fastest Speed 50 | 50 80 130 Average Speed 120 | 86 89 201 Slowest Speed 400 | 90 105 400 Overloaded Moves . | . . . Propulsion Burnouts . | . . . Robots Hopped . | . . . Potential Cave-ins . | . . . Cave-ins Triggered . | . . . Exploration Rate (%) 48 | 3 89 54 Regions Visited 2 Branch Regions 1 Pre-discovered Areas 1 | . . 1 Known Exits Taken . | . . . Unknown Exits Taken 2 | 1 1 . Scrap Searched 1 | . . 1 Spaces Dug . | . . . Terrain Destroyed 60 | . . 60 Melee . | . . . Projectile . | . . . AOE 60 | . . 60 Terrain Rammed . | . . . Walls Destroyed . | . . . Machines Disabled . | . . . Actions | -11 -10 -10 --------- Run | Yrd Mat Min Total 937 | 53 600 284 Wait 37 | . 18 19 Move 725 | 39 484 202 Hop . | . . . Pick Up 34 | 8 15 11 Fast Attach . | . . . Attach 14 | 6 3 5 Detach . | . . . Swap 8 | . 7 1 Drop 7 | . 7 . Fire 111 | . 66 45 Melee . | . . . Ram . | . . . Kick 1 | . . 1 Crush . | . . . Escape Stasis . | . . . Rewire . | . . . Trap . | . . . Miscellaneous . | . . . Route ------- -11/Scrapyard -10/Materials (discovered 4 exits: [*Mat x3] / [*Min]) -10/Mines (discovered 2 exits: [*Mat] / [*Sub]) History --------- Turn | Location | Event 22 | -11/Scrapyard | Discovered new exit (range 15) 49 | -11/Scrapyard | Entered Materials 266 | -10/Materials | Discovered new exit (range 10) 308 | -10/Materials | Build established: Mutant 393 | -10/Materials | Discovered new exit (range 15) 463 | -10/Materials | Central database locked down 528 | -10/Materials | Discovered new exit (range 15) 563 | -10/Materials | Core integrity fell below 50% 590 | -10/Materials | Discovered new exit (range 16) 702 | -10/Materials | Entered Mines 717 | -10/Mines | Escorted by a lone wolf Derelict 737 | -10/Mines | Learned location of Storage (-7) 743 | -10/Mines | Lost 3 parts (1n2w) 798 | -10/Mines | Discovered new exit (range 9) 991 | -10/Mines | Core integrity fell below 20% 992 | -10/Mines | Discovered new exit (range 8) 1233 | -10/Mines | Assembled infested the area 1238 | -10/Mines | Assisted by a Guerilla fighting off Assembled 1245 | -10/Mines | Destroyed self with Rocket Launcher Last Messages --------------- dispatching Demolisher response squad. 01234_ U-05 Engineer lays Concrete. 01236_ C9-JHT(h): "I'll hold them off! Go on ahead or try to find another way!" 01236_ U-05 Engineer builds a Wall. 01238_ A derelict emerges from the shadows: "You need to get out of here! I've been tracking a group of Assembled to figure out where they're coming from, and they're closing on this area, come on!" 01240_ C9-JHT(h) destroyed. 01241_ T-07 Excavator destroyed. 01242_ U-05 Engineer destroyed. 01242_ Ion Engine destroyed. 01242_ Destroyed Ion Engine. 01242_ as-83469 destroyed. 01242_ Rocket Launcher destroyed. 01242_ U-05 Engineer lays Concrete. 01245_ as-96501 destroyed. 01245_ as-93963 destroyed. Map ----- +----------------------------------------------------+ | ?????????????????????????????????????????????????? | | ?????????????????????????????????????????????????? | | ?????????????????????????????????????????????????? | | ?????????????????????????????????????????????????? | | ?????????????????????????????????????????????????? | | ?????????????????????????????????????????????????? | | ?????????????????????????????????????????????????? | | ?????????????????????????????????????????????????? | | ?????????????##??????????????????????????????????? | | ????????????? #?????? ????????????????????????? | | #????????????? ?????? ????????????????????????? | | #????????????? #???? ????????????????????????? | | #????????????? ###? ????????????????????????? | | ##???????????? ## ?????????????????????????? | | #????????????? ??????????????????????????? | | ###### #????? ??????????????????????????? | | #????? ?????????????? a ??????????? | | #?????# ?????????????? aa ??????????? | | #########?????# #????????????# ?????????? | | ##????????????## ##?????????? a #?????????? | | ###??????????## #??####### aa #?????????? | | #?????????## #?## aa #?????????? | | #????????## #??# a ##????????? | | ########## ##?## a ???????? | | ##### =a % ???????? | | r *u @=%] = * ???????? | | ?############ ! #[ ???????? | | ????????????# %####### #?????????????????? | | ??########?## ##????#### ##?????????????????? | | ??# #?# ##??????? ###??????????????????? | | ??# ! #?# #????????#????????????????????? | | ### ! #?# #?????????????????????????????? | | ## ! #?## ###?????????????????????????????? | | ## !!! #??### ##???????????????????????????????? | | !## #????# #????????????????????????????????? | | %### #????# #????????????????????????????????? | | ##### ##????# #????????????????????????????????? | | ####### #######??????????????????????????? | | ###### #?????????????????????? | | ???# #% ###############??????????????????????????? | | ???# #% # #?????????????????????????????????????? | | ???# # # #?????????????????????????????????????? | | ???### # ##?????????????????????????????????????? | | ???# ##?????????????????????????????????????? | | #### #?????????????????????????????????????? | | #?????????????????????????????????????? | | #### #????????????????????????????????????? | | ???# #????????????????????????????????????? | | ???# ## #????????????????????????????????????? | | ??? ? #????????????????????????????????????? | +----------------------------------------------------+ Best States ------------- Heat Dissipation 25 Energy Generation 10 Energy Capacity 250 Matter Stores 300 Matter Capacity 300 Sight Range 16 Terrain Scan Density 10 Evasion (%) 44 Targeting Accuracy 5 Item Schematics ----------------- None Robot Schematics ------------------ None Fabricated ------------ Nothing Repaired ---------- Nothing Alien Tech Used ----------------- None Achievements -------------- None Challenges ------------ None Game ------ Seed DeflectorNetworkedReplicator Manual? 0 Play Time 00:16:02 Cumulative 268.7 hours Start 2025.05.11 @ 23:18:24 End 2025.05.11 @ 23:30:48 Sessions 1 Manual Loads 0 Difficulty Rogue Special Mode None Game No. 213 Rogue 204 Adventurer 9 Explorer 0 Win Type - Total 3 Types 2/0/0/1/0/0/0/0/0/0 Lore% 84 Gallery% 71 Achievement% 64 Wizard Run 0 Options --------- Layout 1 ASCII 0 Keyboard 0 Movement Numpad Keybinds 0 Fullscreen 1 Font 24/Smallcaps Map View 50x35 Zoom Use 0% Tactical HUD 1 Map Filters NONE Filters NONE Steam 1 RUN: e895ec75-c170-491f-ad8d-eb5a0aa716b5